[Event "Live Chess"]
[Site "Chess.com"]
[Date "2024.06.02"]
[Round "-"]
[White "booktrunk"]
[Black "RG_ChessLegend"]
[Result "0-1"]
[WhiteElo "1488"]
[BlackElo "1517"]
[TimeControl "300"]
[EndTime "4:42:23 PDT"]
[Termination "RG_ChessLegend won by resignation"]

1. d4 {[%clk 0:04:52.5]} 1... Nf6 {[%clk 0:04:57.5]} 2. Nc3 {[%clk 0:04:50.4]}
2... g6 {[%clk 0:04:56.6]} 3. Bf4 {[%clk 0:04:49.2]} 3... Bg7 {[%clk 0:04:55.2]}
4. Nb5 {[%clk 0:04:44.2]} 4... d6 {[%clk 0:04:53]} 5. e3 {[%clk 0:04:42.1]} 5...
a6 {[%clk 0:04:52.1]} 6. Nc3 {[%clk 0:04:40.6]} 6... O-O {[%clk 0:04:51.7]} 7.
h3 {[%clk 0:04:39.4]} 7... b5 {[%clk 0:04:49.2]} 8. a3 {[%clk 0:04:36.7]} 8...
Bb7 {[%clk 0:04:48.5]} 9. Nf3 {[%clk 0:04:32.6]} 9... Nbd7 {[%clk 0:04:47.5]}
10. Be2 {[%clk 0:04:29.4]} 10... c5 {[%clk 0:04:44.7]} 11. dxc5 {[%clk
0:04:27.3]} 11... Nxc5 {[%clk 0:04:44.6]} 12. O-O {[%clk 0:04:23.1]} 12... Rc8
{[%clk 0:04:40.9]} 13. Rb1 {[%clk 0:04:13.7]} 13... Qb6 {[%clk 0:04:39.2]} 14.
Na2 {[%clk 0:04:10.8]} 14... Rfd8 {[%clk 0:04:33.7]} 15. Nd4 {[%clk 0:04:01.1]}
15... e5 {[%clk 0:04:27.3]} 16. Nxb5 {[%clk 0:03:53.1]} 16... exf4 {[%clk
0:04:12.4]} 17. Nbc3 {[%clk 0:03:49.6]} 17... fxe3 {[%clk 0:04:10.8]} 18. fxe3
{[%clk 0:03:47.7]} 18... Nce4 {[%clk 0:04:06.9]} 19. Nxe4 {[%clk 0:03:43.9]}
19... Qxe3+ {[%clk 0:04:03.5]} 20. Nf2 {[%clk 0:03:36.8]} 20... Qg3 {[%clk
0:03:58.6]} 21. Bf3 {[%clk 0:03:27.5]} 21... Bxf3 {[%clk 0:03:49]} 22. Qxf3
{[%clk 0:03:25.3]} 22... Nh5 {[%clk 0:03:43.1]} 23. Qxg3 {[%clk 0:03:21.8]}
23... Nxg3 {[%clk 0:03:43]} 24. Rfd1 {[%clk 0:03:10.5]} 24... Rxc2 {[%clk
0:03:41]} 25. Nb4 {[%clk 0:03:09.4]} 25... Rxb2 {[%clk 0:03:37.4]} 26. Rxb2
{[%clk 0:03:07.5]} 26... Bxb2 {[%clk 0:03:37.3]} 27. Nxa6 {[%clk 0:03:05.9]}
27... Bxa3 {[%clk 0:03:36.3]} 28. Nc7 {[%clk 0:03:03.1]} 28... Bc5 {[%clk
0:03:32.6]} 29. Nd5 {[%clk 0:02:59.1]} 29... Ne4 {[%clk 0:03:27.5]} 30. Rf1
{[%clk 0:02:40.7]} 30... Nxf2 {[%clk 0:03:21.7]} 31. Rxf2 {[%clk 0:02:40.6]}
31... Bxf2+ {[%clk 0:03:20.2]} 32. Kxf2 {[%clk 0:02:40.3]} 32... f5 {[%clk
0:03:17.3]} 33. Ke3 {[%clk 0:02:37.7]} 33... Kf7 {[%clk 0:03:16.4]} 34. Kd4
{[%clk 0:02:36.2]} 34... Rd7 {[%clk 0:03:13.7]} 35. g3 {[%clk 0:02:33.7]} 35...
h5 {[%clk 0:03:12.2]} 36. Nb6 {[%clk 0:02:32]} 36... Rd8 {[%clk 0:03:10.6]} 37.
Kd5 {[%clk 0:02:30.1]} 37... g5 {[%clk 0:03:06.3]} 38. Nc4 {[%clk 0:02:28.3]}
38... Ke7 {[%clk 0:03:05]} 39. Nb6 {[%clk 0:02:24.4]} 39... g4 {[%clk
0:03:02.8]} 40. hxg4 {[%clk 0:02:22.4]} 40... fxg4 {[%clk 0:02:57]} 41. Nc4
{[%clk 0:02:19.1]} 41... Kf6 {[%clk 0:02:48]} 42. Ne3 {[%clk 0:02:17.7]} 42...
Kg5 {[%clk 0:02:45]} 43. Ke6 {[%clk 0:02:14.6]} 43... h4 {[%clk 0:02:43.8]} 44.
gxh4+ {[%clk 0:02:12.8]} 44... Kxh4 {[%clk 0:02:42.5]} 45. Nf5+ {[%clk 0:02:10]}
45... Kh3 {[%clk 0:02:39.7]} 46. Nxd6 {[%clk 0:02:07.4]} 46... Rxd6+ {[%clk
0:02:38.3]} 47. Kxd6 {[%clk 0:02:05.8]} 47... g3 {[%clk 0:02:38.2]} 0-1

[Event "Live Chess"]
[Site "Chess.com"]
[Date "2024.06.02"]
[Round "-"]
[White "LL220284LL"]
[Black "Tilbs_12"]
[Result "1-0"]
[WhiteElo "2498"]
[BlackElo "1654"]
[TimeControl "300"]
[EndTime "4:42:45 PDT"]
[Termination "LL220284LL won by resignation"]

1. c4 {[%clk 0:04:58]} 1... c5 {[%clk 0:04:54.1]} 2. g3 {[%clk 0:04:56.9]} 2...
Nc6 {[%clk 0:04:53]} 3. Bg2 {[%clk 0:04:55.5]} 3... g6 {[%clk 0:04:52.1]} 4. Nf3
{[%clk 0:04:53.3]} 4... Bg7 {[%clk 0:04:51.1]} 5. Nc3 {[%clk 0:04:52.1]} 5...
Nf6 {[%clk 0:04:50]} 6. O-O {[%clk 0:04:50.7]} 6... O-O {[%clk 0:04:48.8]} 7. d3
{[%clk 0:04:50.2]} 7... e5 {[%clk 0:04:47.3]} 8. Rb1 {[%clk 0:04:49.1]} 8... d6
{[%clk 0:04:46.7]} 9. a3 {[%clk 0:04:48.2]} 9... a5 {[%clk 0:04:45.2]} 10. Bg5
{[%clk 0:04:43.8]} 10... h6 {[%clk 0:04:30.7]} 11. Bxf6 {[%clk 0:04:41.1]} 11...
Bxf6 {[%clk 0:04:29.7]} 12. Nd5 {[%clk 0:04:39.9]} 12... Bg7 {[%clk 0:04:25.4]}
13. b4 {[%clk 0:04:37.6]} 13... axb4 {[%clk 0:04:19.8]} 14. axb4 {[%clk
0:04:37.5]} 14... Be6 {[%clk 0:04:15]} 15. bxc5 {[%clk 0:04:35.4]} 15... Bxd5
{[%clk 0:04:13.6]} 16. cxd5 {[%clk 0:04:33.3]} 16... Ne7 {[%clk 0:04:10.7]} 17.
Rxb7 {[%clk 0:04:27.3]} 17... dxc5 {[%clk 0:04:05.4]} 18. Nd2 {[%clk 0:04:22.3]}
18... Nxd5 {[%clk 0:04:01.7]} 19. Ne4 {[%clk 0:04:15.3]} 19... Rc8 {[%clk
0:03:55.4]} 20. Qb3 {[%clk 0:04:05.8]} 20... Nf6 {[%clk 0:03:46.5]} 21. Nxf6+
{[%clk 0:03:55.4]} 21... Bxf6 {[%clk 0:03:45.4]} 22. Rc1 {[%clk 0:03:48.2]}
22... Rc7 {[%clk 0:03:33.7]} 23. Rb6 {[%clk 0:03:43.6]} 23... Bg7 {[%clk
0:03:24.4]} 24. Rxg6 {[%clk 0:03:31.6]} 24... c4 {[%clk 0:03:13.8]} 25. Rxc4
{[%clk 0:03:29.4]} 25... Rxc4 {[%clk 0:03:12.5]} 26. Qxc4 {[%clk 0:03:28.1]}
26... Qa5 {[%clk 0:03:01.7]} 27. Bd5 {[%clk 0:03:19.9]} 27... Qe1+ {[%clk
0:02:55.7]} 28. Kg2 {[%clk 0:03:17.9]} 28... Qxe2 {[%clk 0:02:54.9]} 29. Qh4
{[%clk 0:02:52.4]} 29... Qxd3 {[%clk 0:02:45]} 30. Be4 {[%clk 0:02:51]} 30...
Qd4 {[%clk 0:02:39.2]} 31. Rxg7+ {[%clk 0:02:24.8]} 31... Kxg7 {[%clk
0:02:32.2]} 32. Qg4+ {[%clk 0:02:24.2]} 32... Kh8 {[%clk 0:02:25.8]} 33. Qf5
{[%clk 0:02:23]} 1-0

[Event "Live Chess"]
[Site "Chess.com"]
[Date "2024.06.02"]
[Round "-"]
[White "IgorSchukin"]
[Black "DoctorMantisTobogganMD"]
[Result "0-1"]
[WhiteElo "1768"]
[BlackElo "2179"]
[TimeControl "300"]
[EndTime "4:42:53 PDT"]
[Termination "DoctorMantisTobogganMD won by checkmate"]

1. e4 {[%clk 0:04:57.7]} 1... d5 {[%clk 0:04:58.4]} 2. exd5 {[%clk 0:04:56.3]}
2... Nf6 {[%clk 0:04:57.7]} 3. Nc3 {[%clk 0:04:55.6]} 3... Nxd5 {[%clk
0:04:56.1]} 4. g3 {[%clk 0:04:54.8]} 4... Nxc3 {[%clk 0:04:54.5]} 5. bxc3 {[%clk
0:04:54]} 5... c6 {[%clk 0:04:52.8]} 6. Bg2 {[%clk 0:04:52.7]} 6... g6 {[%clk
0:04:52.3]} 7. Ne2 {[%clk 0:04:49.3]} 7... Bg7 {[%clk 0:04:51.6]} 8. d4 {[%clk
0:04:48.3]} 8... O-O {[%clk 0:04:51.1]} 9. O-O {[%clk 0:04:47]} 9... Bg4 {[%clk
0:04:49.7]} 10. h3 {[%clk 0:04:45]} 10... Bxe2 {[%clk 0:04:48.1]} 11. Qxe2
{[%clk 0:04:43.9]} 11... e6 {[%clk 0:04:48]} 12. Re1 {[%clk 0:04:42.1]} 12...
Nd7 {[%clk 0:04:45.2]} 13. a4 {[%clk 0:04:37.9]} 13... Qa5 {[%clk 0:04:43.3]}
14. Bd2 {[%clk 0:04:35.3]} 14... Qc7 {[%clk 0:04:36]} 15. a5 {[%clk 0:04:03.1]}
15... Rac8 {[%clk 0:04:30.4]} 16. Bf4 {[%clk 0:03:56.7]} 16... Qd8 {[%clk
0:04:28.2]} 17. Reb1 {[%clk 0:03:48.2]} 17... b6 {[%clk 0:04:23.8]} 18. axb6
{[%clk 0:03:44.8]} 18... axb6 {[%clk 0:04:23.2]} 19. Ra7 {[%clk 0:03:41.9]}
19... c5 {[%clk 0:04:22.1]} 20. Qb5 {[%clk 0:03:25.9]} 20... Nf6 {[%clk
0:04:11.3]} 21. Qxb6 {[%clk 0:03:18.4]} 21... Qxb6 {[%clk 0:04:07.8]} 22. Rxb6
{[%clk 0:03:16.3]} 22... cxd4 {[%clk 0:04:07.3]} 23. Rc7 {[%clk 0:03:02.5]}
23... dxc3 {[%clk 0:04:02]} 24. Bb7 {[%clk 0:02:46.7]} 24... Rxc7 {[%clk
0:03:57]} 25. Bxc7 {[%clk 0:02:45.1]} 25... Nd5 {[%clk 0:03:50.9]} 26. Bxd5
{[%clk 0:02:37.6]} 26... exd5 {[%clk 0:03:50.8]} 27. Rb8 {[%clk 0:02:32.2]}
27... Rxb8 {[%clk 0:03:48.1]} 28. Bxb8 {[%clk 0:02:31.2]} 28... f5 {[%clk
0:03:46.3]} 29. f4 {[%clk 0:02:29]} 29... Kf7 {[%clk 0:03:45]} 30. Kf2 {[%clk
0:02:26.1]} 30... Ke6 {[%clk 0:03:36.1]} 31. Ke3 {[%clk 0:02:23.6]} 31... d4+
{[%clk 0:03:33.5]} 32. Kd3 {[%clk 0:02:22.4]} 32... Kd5 {[%clk 0:03:33.2]} 33.
g4 {[%clk 0:02:15.2]} 33... fxg4 {[%clk 0:03:29.9]} 34. hxg4 {[%clk 0:02:13.7]}
34... h5 {[%clk 0:03:29.4]} 35. gxh5 {[%clk 0:02:04.7]} 35... gxh5 {[%clk
0:03:29.3]} 36. Bc7 {[%clk 0:01:58.2]} 36... h4 {[%clk 0:03:25.8]} 37. f5 {[%clk
0:01:52.8]} 37... Be5 {[%clk 0:03:23.1]} 38. Bd8 {[%clk 0:01:39.6]} 38... h3
{[%clk 0:03:20.8]} 39. f6 {[%clk 0:01:38.8]} 39... h2 {[%clk 0:03:17.4]} 40. f7
{[%clk 0:01:35.9]} 40... Bg7 {[%clk 0:03:12.4]} 41. Bb6 {[%clk 0:01:28.5]} 41...
h1=Q {[%clk 0:03:09.6]} 42. Bxd4 {[%clk 0:01:26.7]} 42... Qe4+ {[%clk
0:03:07.9]} 43. Kxc3 {[%clk 0:01:24.4]} 43... Qxd4+ {[%clk 0:03:07.3]} 44. Kb3
{[%clk 0:01:22.9]} 44... Qc4+ {[%clk 0:03:06]} 45. Ka3 {[%clk 0:01:20.9]} 45...
Kc5 {[%clk 0:02:58.8]} 46. f8=Q+ {[%clk 0:01:13.3]} 46... Bxf8 {[%clk
0:02:57.6]} 47. Kb2 {[%clk 0:01:11.8]} 47... Kb4 {[%clk 0:02:54.8]} 48. Kb1
{[%clk 0:01:08.4]} 48... Qc3 {[%clk 0:02:52]} 49. Ka2 {[%clk 0:01:05.8]} 49...
Bg7 {[%clk 0:02:49.9]} 50. Kb1 {[%clk 0:01:03.7]} 50... Qb2# {[%clk 0:02:49.4]}
0-1

[Event "Live Chess"]
[Site "Chess.com"]
[Date "2024.06.02"]
[Round "-"]
[White "ProfPoisson"]
[Black "missedJariChance"]
[Result "0-1"]
[WhiteElo "1326"]
[BlackElo "1361"]
[TimeControl "300"]
[EndTime "4:43:23 PDT"]
[Termination "missedJariChance won by resignation"]

1. e4 {[%clk 0:04:54.9]} 1... c5 {[%clk 0:04:58.8]} 2. Nc3 {[%clk 0:04:52]} 2...
e6 {[%clk 0:04:57.4]} 3. f4 {[%clk 0:04:50.2]} 3... Nc6 {[%clk 0:04:56.4]} 4.
Nf3 {[%clk 0:04:47.5]} 4... a6 {[%clk 0:04:55.3]} 5. a4 {[%clk 0:04:43.9]} 5...
Qc7 {[%clk 0:04:54.1]} 6. Bc4 {[%clk 0:04:32.1]} 6... Nf6 {[%clk 0:04:39.4]} 7.
d3 {[%clk 0:04:29.5]} 7... Be7 {[%clk 0:04:37]} 8. O-O {[%clk 0:04:27.9]} 8...
O-O {[%clk 0:04:35]} 9. Qe1 {[%clk 0:04:25.4]} 9... d5 {[%clk 0:04:27.9]} 10.
exd5 {[%clk 0:04:21.8]} 10... exd5 {[%clk 0:04:25.4]} 11. Bxd5 {[%clk
0:04:18.2]} 11... Re8 {[%clk 0:04:16]} 12. Bxc6 {[%clk 0:04:08.9]} 12... Qxc6
{[%clk 0:04:14.3]} 13. Qg3 {[%clk 0:04:04.3]} 13... Bf5 {[%clk 0:03:54.9]} 14.
Ne5 {[%clk 0:03:51.1]} 14... Qd6 {[%clk 0:03:41.4]} 15. Ne4 {[%clk 0:03:46.5]}
15... Nxe4 {[%clk 0:03:33.8]} 16. dxe4 {[%clk 0:03:44.3]} 16... Bxe4 {[%clk
0:03:24]} 17. b3 {[%clk 0:03:38.3]} 17... Bxc2 {[%clk 0:03:01.2]} 18. Bb2 {[%clk
0:03:35.3]} 18... Bg6 {[%clk 0:02:57.6]} 19. Nxg6 {[%clk 0:03:27.4]} 19... fxg6
{[%clk 0:02:50]} 20. Rad1 {[%clk 0:03:24.4]} 20... Qe6 {[%clk 0:02:35.5]} 21.
Rfe1 {[%clk 0:03:18.1]} 21... Qf5 {[%clk 0:02:29.8]} 22. Re5 {[%clk 0:02:58.1]}
22... Qc2 {[%clk 0:02:25]} 23. Rxe7 {[%clk 0:02:17.8]} 23... Qxd1+ {[%clk
0:02:10.3]} 24. Re1 {[%clk 0:02:10.9]} 24... Rxe1+ {[%clk 0:02:08.5]} 0-1

[Event "Live Chess"]
[Site "Chess.com"]
[Date "2024.06.02"]
[Round "-"]
[White "JanMur7"]
[Black "booktrunk"]
[Result "1-0"]
[WhiteElo "2291"]
[BlackElo "1488"]
[TimeControl "300"]
[EndTime "4:43:31 PDT"]
[Termination "JanMur7 won by resignation"]

1. d4 {[%clk 0:04:57.9]} 1... e6 {[%clk 0:04:58.1]} 2. e4 {[%clk 0:04:55.7]}
2... d5 {[%clk 0:04:53.2]} 3. exd5 {[%clk 0:04:55.6]} 3... Qxd5 {[%clk
0:04:51.7]} 4. Bd3 {[%clk 0:04:55.5]} 4... Nc6 {[%clk 0:04:48.5]} 5. Nf3 {[%clk
0:04:53.6]} 5... Nxd4 {[%clk 0:04:37.9]} 6. Nxd4 {[%clk 0:04:50.7]} 6... Qxd4
{[%clk 0:04:36.6]} 7. Bb5+ {[%clk 0:04:49.2]} 7... c6 {[%clk 0:04:26.4]} 8. Qxd4
{[%clk 0:04:46.8]} 8... Nf6 {[%clk 0:04:25.3]} 9. Bd3 {[%clk 0:04:44.5]} 9...
Ne4 {[%clk 0:04:23.8]} 10. Qxe4 {[%clk 0:04:42.6]} 10... Be7 {[%clk 0:04:21.3]}
11. O-O {[%clk 0:04:39.4]} 1-0

[Event "Live Chess"]
[Site "Chess.com"]
[Date "2024.06.02"]
[Round "-"]
[White "Grace6363"]
[Black "upoe610"]
[Result "0-1"]
[WhiteElo "1150"]
[BlackElo "2141"]
[TimeControl "300"]
[EndTime "4:43:32 PDT"]
[Termination "upoe610 won by resignation"]

1. d4 {[%clk 0:04:57.1]} 1... Nf6 {[%clk 0:04:59.1]} 2. c4 {[%clk 0:04:54.7]}
2... e6 {[%clk 0:04:58]} 3. Nf3 {[%clk 0:04:52.6]} 3... d5 {[%clk 0:04:56.8]} 4.
cxd5 {[%clk 0:04:48.2]} 4... exd5 {[%clk 0:04:55.2]} 5. a3 {[%clk 0:04:43.2]}
5... Bf5 {[%clk 0:04:53.7]} 6. Bg5 {[%clk 0:04:42.3]} 6... Be7 {[%clk
0:04:52.5]} 7. Nc3 {[%clk 0:04:41.3]} 7... h6 {[%clk 0:04:50.8]} 8. Bh4 {[%clk
0:04:40.3]} 8... O-O {[%clk 0:04:48.9]} 9. e3 {[%clk 0:04:39.7]} 9... a6 {[%clk
0:04:45.6]} 10. Bd3 {[%clk 0:04:38.5]} 10... Ne4 {[%clk 0:04:43.1]} 11. Bxe7
{[%clk 0:04:36.1]} 11... Qxe7 {[%clk 0:04:39.5]} 12. Ne5 {[%clk 0:04:26.5]}
12... Nxc3 {[%clk 0:04:35.9]} 13. bxc3 {[%clk 0:04:23.4]} 13... Bxd3 {[%clk
0:04:34.2]} 14. Qxd3 {[%clk 0:04:19.9]} 14... c6 {[%clk 0:04:33]} 15. Qe2 {[%clk
0:04:13.3]} 15... Nd7 {[%clk 0:04:31.9]} 16. f4 {[%clk 0:04:11.7]} 16... Nf6
{[%clk 0:04:30.3]} 17. Qd3 {[%clk 0:03:49.5]} 17... Ne4 {[%clk 0:04:29.3]} 18.
O-O {[%clk 0:03:45.3]} 18... Rae8 {[%clk 0:04:27.6]} 19. Rf3 {[%clk 0:03:39.3]}
19... Qd6 {[%clk 0:04:21.4]} 20. Raf1 {[%clk 0:03:24.1]} 20... Qxa3 {[%clk
0:04:19.6]} 21. f5 {[%clk 0:03:15.8]} 21... Qxc3 {[%clk 0:04:17.5]} 22. Qxc3
{[%clk 0:03:13]} 22... Nxc3 {[%clk 0:04:16.5]} 23. Nd7 {[%clk 0:03:08.1]} 23...
a5 {[%clk 0:04:08.5]} 24. Nxf8 {[%clk 0:03:07]} 24... Kxf8 {[%clk 0:04:08.1]}
25. e4 {[%clk 0:03:05.2]} 25... Nxe4 {[%clk 0:04:06.5]} 26. Ra3 {[%clk
0:03:03.5]} 26... Ra8 {[%clk 0:04:03.9]} 27. g4 {[%clk 0:02:56.9]} 27... Nd2
{[%clk 0:04:02.4]} 28. Rc1 {[%clk 0:02:46.2]} 28... Nc4 {[%clk 0:04:01.1]} 29.
Ra4 {[%clk 0:02:32.3]} 29... b5 {[%clk 0:03:59.4]} 30. Raa1 {[%clk 0:02:24.9]}
30... a4 {[%clk 0:03:58.4]} 31. Kf2 {[%clk 0:02:21.4]} 31... a3 {[%clk
0:03:57.4]} 32. Rc2 {[%clk 0:02:15.5]} 32... b4 {[%clk 0:03:55]} 33. Ke2 {[%clk
0:02:11.2]} 33... b3 {[%clk 0:03:53.5]} 34. Rc3 {[%clk 0:02:05.2]} 34... b2
{[%clk 0:03:51.3]} 35. Rb1 {[%clk 0:01:55.9]} 35... a2 {[%clk 0:03:49.5]} 0-1

[Event "Live Chess"]
[Site "Chess.com"]
[Date "2024.06.02"]
[Round "-"]
[White "Hoogleboogle"]
[Black "AlanBstard10"]
[Result "0-1"]
[WhiteElo "1265"]
[BlackElo "1235"]
[TimeControl "300"]
[EndTime "4:43:40 PDT"]
[Termination "AlanBstard10 won by resignation"]

1. d4 {[%clk 0:04:56.6]} 1... Nf6 {[%clk 0:04:58.5]} 2. c4 {[%clk 0:04:55.7]}
2... c5 {[%clk 0:04:56.2]} 3. d5 {[%clk 0:04:52.8]} 3... b5 {[%clk 0:04:54.7]}
4. e3 {[%clk 0:04:49.5]} 4... g6 {[%clk 0:04:53.2]} 5. Nc3 {[%clk 0:04:46.8]}
5... Bg7 {[%clk 0:04:52.1]} 6. Nf3 {[%clk 0:04:41.3]} 6... O-O {[%clk
0:04:50.9]} 7. a3 {[%clk 0:04:06.3]} 7... d6 {[%clk 0:04:48.3]} 8. Ng5 {[%clk
0:03:55.5]} 8... Nbd7 {[%clk 0:04:46.7]} 9. e4 {[%clk 0:03:52.4]} 9... h6 {[%clk
0:04:41.8]} 10. Nf3 {[%clk 0:03:49.1]} 10... b4 {[%clk 0:04:30.4]} 11. axb4
{[%clk 0:03:46.6]} 11... cxb4 {[%clk 0:04:29.4]} 12. Nb5 {[%clk 0:03:31.1]}
12... a6 {[%clk 0:04:17]} 13. Nbd4 {[%clk 0:03:28.2]} 13... Nb6 {[%clk
0:04:11.2]} 14. Nc6 {[%clk 0:03:26.6]} 14... Qc7 {[%clk 0:04:06.4]} 15. b3
{[%clk 0:03:22.2]} 15... Nbd7 {[%clk 0:03:49.1]} 16. Nxb4 {[%clk 0:03:03.9]}
16... Rb8 {[%clk 0:03:46.3]} 17. Nc6 {[%clk 0:03:01.8]} 17... Rb6 {[%clk
0:03:35.4]} 18. Be3 {[%clk 0:02:58.2]} 18... Kh7 {[%clk 0:03:30.7]} 19. Bxb6
{[%clk 0:02:55.1]} 19... Qxb6 {[%clk 0:03:29.6]} 20. Bd3 {[%clk 0:02:47.5]}
20... Nc5 {[%clk 0:03:27.5]} 21. Ra3 {[%clk 0:02:34.7]} 21... Nxd3+ {[%clk
0:03:22.6]} 22. Ke2 {[%clk 0:02:30.9]} 22... Nf4+ {[%clk 0:03:19]} 23. Ke1
{[%clk 0:02:23.9]} 23... Nxg2+ {[%clk 0:03:14.8]} 24. Kf1 {[%clk 0:02:21.3]}
24... Nf4 {[%clk 0:03:06.9]} 25. Rg1 {[%clk 0:02:18.7]} 25... Nh3 {[%clk
0:02:54.9]} 26. Rg3 {[%clk 0:02:15.5]} 26... Nf4 {[%clk 0:02:47.5]} 27. Ng5+
{[%clk 0:02:09.1]} 27... Kg8 {[%clk 0:02:44.3]} 28. Nxe7+ {[%clk 0:02:03.5]}
28... Kh8 {[%clk 0:02:39.7]} 29. Rf3 {[%clk 0:01:44.9]} 29... Qb4 {[%clk
0:02:34.2]} 30. Ra4 {[%clk 0:01:20.1]} 30... Qb7 {[%clk 0:02:18.3]} 31. Rxf4
{[%clk 0:01:16.6]} 31... Qxe7 {[%clk 0:02:16.9]} 32. Qd3 {[%clk 0:00:56.9]}
32... Re8 {[%clk 0:02:14.4]} 33. Qh3 {[%clk 0:00:51.6]} 33... Bxh3+ {[%clk
0:02:05.6]} 34. Ke2 {[%clk 0:00:49.2]} 34... hxg5 {[%clk 0:01:50.9]} 35. Rf3
{[%clk 0:00:43.9]} 35... Bg4 {[%clk 0:01:49.4]} 0-1

[Event "Live Chess"]
[Site "Chess.com"]
[Date "2024.06.02"]
[Round "-"]
[White "friarnator"]
[Black "GwaryTek"]
[Result "1-0"]
[WhiteElo "2196"]
[BlackElo "1826"]
[TimeControl "300"]
[EndTime "4:43:43 PDT"]
[Termination "friarnator won on time"]

1. d4 {[%clk 0:04:58.5]} 1... Nf6 {[%clk 0:04:58]} 2. Nc3 {[%clk 0:04:57.5]}
2... d5 {[%clk 0:04:56.4]} 3. Bf4 {[%clk 0:04:56.9]} 3... c6 {[%clk 0:04:43]} 4.
e3 {[%clk 0:04:55.4]} 4... Bg4 {[%clk 0:04:41.3]} 5. f3 {[%clk 0:04:54.8]} 5...
Bh5 {[%clk 0:04:36.3]} 6. g4 {[%clk 0:04:54.4]} 6... Bg6 {[%clk 0:04:35]} 7. h4
{[%clk 0:04:54.3]} 7... h6 {[%clk 0:04:33.4]} 8. Bd3 {[%clk 0:04:52.2]} 8...
Bxd3 {[%clk 0:04:31.6]} 9. Qxd3 {[%clk 0:04:52.1]} 9... Nbd7 {[%clk 0:04:30.5]}
10. Nge2 {[%clk 0:04:51.6]} 10... Qb6 {[%clk 0:04:29]} 11. O-O-O {[%clk
0:04:50.8]} 11... e6 {[%clk 0:04:26]} 12. g5 {[%clk 0:04:50.2]} 12... hxg5
{[%clk 0:04:24.2]} 13. hxg5 {[%clk 0:04:50.1]} 13... Rxh1 {[%clk 0:04:22.4]} 14.
Rxh1 {[%clk 0:04:47.4]} 14... Ng8 {[%clk 0:04:21]} 15. g6 {[%clk 0:04:37.7]}
15... f6 {[%clk 0:04:13.1]} 16. e4 {[%clk 0:04:24.1]} 16... Ne7 {[%clk
0:04:08.7]} 17. exd5 {[%clk 0:04:18]} 17... cxd5 {[%clk 0:04:02.4]} 18. Nb5
{[%clk 0:04:16.5]} 18... e5 {[%clk 0:03:47.2]} 19. dxe5 {[%clk 0:04:06.4]} 19...
fxe5 {[%clk 0:03:47.1]} 20. Bg5 {[%clk 0:03:44.8]} 20... Nc5 {[%clk 0:03:33]}
21. Qe3 {[%clk 0:03:23.4]} 21... Qxb5 {[%clk 0:03:20.6]} 22. Qxe5 {[%clk
0:03:22.2]} 22... O-O-O {[%clk 0:02:58.3]} 23. Bxe7 {[%clk 0:03:18.4]} 23...
Bxe7 {[%clk 0:02:56.8]} 24. Qxe7 {[%clk 0:03:15.3]} 24... Re8 {[%clk 0:02:52.9]}
25. Qxg7 {[%clk 0:03:04.9]} 25... Qxe2 {[%clk 0:02:37.4]} 26. b3 {[%clk
0:02:55.1]} 26... Qxf3 {[%clk 0:02:25.9]} 27. Rh7 {[%clk 0:02:44.9]} 27... Nd3+
{[%clk 0:00:32.6]} 28. cxd3 {[%clk 0:02:35.5]} 28... Re1+ {[%clk 0:00:30.7]} 29.
Kb2 {[%clk 0:02:33.7]} 29... Qf2+ {[%clk 0:00:18]} 30. Kc3 {[%clk 0:02:01.3]}
30... Rc1+ {[%clk 0:00:13]} 31. Kb4 {[%clk 0:01:55.8]} 31... Qc5+ {[%clk
0:00:00.9]} 32. Ka4 {[%clk 0:01:55.4]} 1-0

[Event "Live Chess"]
[Site "Chess.com"]
[Date "2024.06.02"]
[Round "-"]
[White "Bradfield133"]
[Black "road2gm5000"]
[Result "1-0"]
[WhiteElo "1844"]
[BlackElo "1103"]
[TimeControl "300"]
[EndTime "4:43:53 PDT"]
[Termination "Bradfield133 won by resignation"]

1. c4 {[%clk 0:04:55.9]} 1... e5 {[%clk 0:04:57.8]} 2. g3 {[%clk 0:04:53.4]}
2... Nc6 {[%clk 0:04:55.3]} 3. Bg2 {[%clk 0:04:43.6]} 3... f5 {[%clk 0:04:53.3]}
4. Nc3 {[%clk 0:04:41.5]} 4... Bb4 {[%clk 0:04:51.4]} 5. Qc2 {[%clk 0:04:36]}
5... d6 {[%clk 0:04:32.6]} 6. e3 {[%clk 0:04:34.7]} 6... Nf6 {[%clk 0:04:31.2]}
7. Nge2 {[%clk 0:04:33.4]} 7... Qe7 {[%clk 0:04:26.8]} 8. O-O {[%clk 0:04:31.4]}
8... Be6 {[%clk 0:04:25.9]} 9. Nd5 {[%clk 0:04:25.1]} 9... Bxd5 {[%clk
0:04:08.7]} 10. cxd5 {[%clk 0:04:23.5]} 10... Nd8 {[%clk 0:03:56.9]} 11. Qa4+
{[%clk 0:04:21.9]} 11... c6 {[%clk 0:03:52.3]} 12. Qxb4 {[%clk 0:04:19.9]} 12...
O-O {[%clk 0:03:49.2]} 13. dxc6 {[%clk 0:04:12.1]} 13... Nxc6 {[%clk 0:03:49.1]}
14. Qb3+ {[%clk 0:04:04.6]} 14... Kh8 {[%clk 0:03:47]} 15. d3 {[%clk 0:04:00.2]}
15... Qf7 {[%clk 0:03:39.4]} 16. Qxf7 {[%clk 0:03:56.7]} 16... Rxf7 {[%clk
0:03:38.2]} 17. a3 {[%clk 0:03:55.7]} 17... Rc8 {[%clk 0:03:36.2]} 18. Bd2
{[%clk 0:03:53.4]} 18... b6 {[%clk 0:03:35.7]} 19. Rac1 {[%clk 0:03:49]} 19...
Rfc7 {[%clk 0:03:35]} 20. Rc3 {[%clk 0:03:28.4]} 20... Ne7 {[%clk 0:03:32.2]}
21. Rfc1 {[%clk 0:03:25.7]} 21... Rxc3 {[%clk 0:03:30.9]} 22. Rxc3 {[%clk
0:03:24.5]} 22... Rxc3 {[%clk 0:03:29.5]} 23. Bxc3 {[%clk 0:03:23.1]} 23... Ned5
{[%clk 0:03:29.4]} 24. Bxd5 {[%clk 0:03:08.8]} 24... Nxd5 {[%clk 0:03:29.3]} 25.
d4 {[%clk 0:03:02.7]} 25... e4 {[%clk 0:03:19.1]} 26. Nf4 {[%clk 0:02:57.5]} 1-0